fUST/lending_fUST_20250501
["ID","MTS","AMOUNT","RATE_DAILY","PERIOD"]
[359526827,1746092805508,-617.28456,0.0002598,7]
[359526828,1746092805549,-192.397306,0.0002598,7]
[359526829,1746092805591,-151.0,0.0002598,7]
[359526830,1746092805629,-324.87596,0.0002598,7]
[359526831,1746092805675,-324.87596,0.0002598,7]
[359526832,1746092805717,-151.0,0.0002598,7]
[359526833,1746092805759,-151.0,0.0002598,7]
[359526834,1746092805799,-151.0,0.0002598,7]
[359526835,1746092805838,-506.805796,0.0002598,7]
[359526836,1746092805876,-151.0,0.0002598,7]
[359526837,1746092805915,-157.733382,0.0002598,7]
[359526838,1746092805954,-157.733382,0.0002598,7]
[359526839,1746092805993,-151.0,0.0002598,7]
[359526840,1746092806032,-346.113613,0.0002598,7]
[359526841,1746092806070,-346.113613,0.0002598,7]
[359526842,1746092806107,-151.0,0.0002598,7]
[359526843,1746092806144,-151.0,0.0002598,7]
[359526844,1746092806182,-151.0,0.0002598,7]
[359526845,1746092806221,-151.0,0.0002598,7]
[359526846,1746092806259,-1062.277913,0.0002598,7]
[359526847,1746092806300,-1062.277913,0.0002598,7]
[359526848,1746092806343,-151.0,0.0002598,7]
[359526849,1746092806384,-151.0,0.0002598,7]
[359526850,1746092806426,-151.0,0.0002598,7]
[359526851,1746092806468,-151.0,0.0002598,7]
[359526852,1746092806508,-151.0,0.0002598,7]
[359526853,1746092806548,-151.0,0.0002598,7]
[359526854,1746092806586,-180.822897,0.0002598,7]
[359526855,1746092806616,-180.822897,0.0002598,7]
[359526856,1746092806647,-662.895991,0.0002598,7]
[359526857,1746092806958,-662.895991,0.0002598,7]
[359526858,1746092806990,-151.0,0.0002598,7]
[359526859,1746092807017,-151.0,0.0002598,7]
[359526860,1746092807046,-151.0,0.0002598,7]
[359526861,1746092807077,-151.0,0.0002598,7]
[359526862,1746092807107,-151.0,0.0002598,7]
[359526863,1746092807138,-225.738414,0.0002598,7]
[359526864,1746092807168,-225.738414,0.0002598,7]
[359526865,1746092807201,-266.60647185,0.00026003,14]
[359526866,1746092807231,-151.0,0.000261,13]
[359526867,1746092807261,-151.0,0.000263,15]
[359526868,1746092807295,-151.0,0.000265,10]
[359526869,1746092807328,-266.60647185,0.00026555,15]
[359526870,1746092807359,-151.0,0.000268,13]
[359526871,1746092807390,-151.0,0.0002697,7]
[359526872,1746092807420,-151.0,0.0002697,7]
[359526873,1746092807451,-193.168449,0.00026973,7]
[359526874,1746092807482,-193.168449,0.00026973,7]
[359526875,1746092807512,-151.0,0.0002698,7]
[359526876,1746092807754,-151.0,0.0002698,7]
[359526877,1746092807787,-151.0,0.0002698,7]
[359526878,1746092807819,-151.0,0.0002698,7]
[359526879,1746092807848,-54.2160438,0.0002698,7]
[359526883,1746092838142,-250.0,0.000219,2]
[359526884,1746092838163,-328.2308609,0.00023273,2]
[359526885,1746092838186,-120.8674201,0.00023467,2]
[359526900,1746092911585,-86.5325799,0.00023467,2]
[359526901,1746092911608,-300.0,0.00023735,2]
[359526902,1746092911631,-55.39446016,0.00023736,2]
[359526904,1746092918652,-437.29314835,0.00023736,2]
[359526907,1746092925181,-178.13892656,0.000218,2]
[359526908,1746092930883,-71.86107344,0.000218,2]
[359526922,1746093033765,-250.0,0.00023635,2]
[359526924,1746093033776,-181.0,0.00023735,2]
[359526926,1746093033787,-300.0,0.00023735,2]
[359526928,1746093033799,-300.0,0.00023735,2]
[359526930,1746093033810,-194.0,0.00023735,2]
[359526932,1746093033824,-1200.0,0.00023735,2]
[359526934,1746093033835,-2199.983028,0.00023736,2]
[359526936,1746093033850,-22207.32936349,0.00023736,2]
[359526938,1746093033861,-333.3086798,0.00023983,2]
[359526940,1746093033876,-423.30949923,0.000246,2]
[359526942,1746093033888,-1191.25399113,0.00024673,2]
[359526944,1746093033900,-500.0,0.00024771,2]
[359526946,1746093033911,-500.0,0.00024771,2]
[359526948,1746093033923,-500.0,0.00024771,2]
[359526950,1746093033934,-500.0,0.00024771,2]
[359526952,1746093033946,-500.0,0.00024771,2]
[359526954,1746093033959,-500.0,0.00024771,2]
[359526956,1746093033971,-355.53602125,0.00024771,2]
[359526959,1746093033992,-144.46397875,0.00024771,2]
[359526961,1746093034004,-167.09500149,0.00024771,2]
[359526963,1746093034017,-500.0,0.00024771,2]
[359526965,1746093034035,-500.0,0.00024771,2]
[359526967,1746093034048,-441.20565964,0.00024771,2]
[359526969,1746093034060,-500.0,0.00024771,2]
[359526971,1746093034072,-500.0,0.00024771,2]
[359526973,1746093034085,-500.0,0.00024771,2]
[359526975,1746093034095,-500.0,0.00024771,2]
[359526977,1746093034107,-500.0,0.00024771,2]
[359526980,1746093034125,-10401.24238854,0.00024772,2]
[359526981,1746093034141,-274.96966962,0.00024773,2]
[359526984,1746093034152,-500.0,0.00024773,2]
[359526985,1746093034163,-500.0,0.00024773,2]
[359526987,1746093034175,-500.0,0.00024773,2]
[359526990,1746093034186,-500.0,0.00024773,2]
[359526991,1746093034197,-500.0,0.00024773,2]
[359526993,1746093034209,-500.0,0.00024773,2]
[359526995,1746093034221,-372.60880492,0.00024773,2]
[359526997,1746093034232,-500.0,0.00024773,2]
[359527000,1746093034244,-475.48291619,0.00024773,2]
[359527002,1746093034255,-500.0,0.00024773,2]
[359527003,1746093034266,-300.0,0.00024773,2]
[359527005,1746093034277,-500.0,0.00024773,2]
[359527008,1746093034288,-500.0,0.00024773,2]
[359527010,1746093034300,-500.0,0.00024773,2]
[359527012,1746093034312,-500.0,0.00024773,2]
[359527014,1746093034324,-501.04422994,0.00024773,2]
[359527016,1746093034336,-563.72465577,0.00024798,2]
[359527077,1746093039350,-500.0,0.00024771,2]
[359527080,1746093039360,-500.0,0.00024771,2]
[359527081,1746093039371,-500.0,0.00024771,2]
[359527082,1746093039382,-500.0,0.00024771,2]
[359527083,1746093039392,-500.0,0.00024771,2]
[359527084,1746093039402,-500.0,0.00024771,2]
[359527085,1746093039411,-500.0,0.00024771,2]
[359527086,1746093039420,-500.0,0.00024771,2]
[359527087,1746093039430,-205.0450559,0.00024771,2]
[359527088,1746093039442,-294.9549441,0.00024771,2]
[359527089,1746093039453,-500.0,0.00024771,2]
[359527090,1746093039463,-500.0,0.00024771,2]
[359527091,1746093039472,-228.27965863,0.00024771,2]
[359527092,1746093039483,-500.0,0.00024771,2]
[359527093,1746093039493,-500.0,0.00024771,2]
[359527095,1746093039503,-500.0,0.00024771,2]
[359527096,1746093039512,-500.0,0.00024771,2]
[359527098,1746093039522,-3573.58532912,0.00024798,2]
[359527099,1746093039532,-500.0,0.00024799,2]
[359527100,1746093039544,-500.0,0.00024799,2]
[359527101,1746093039554,-354.31651795,0.00024799,2]
[359527102,1746093039563,-500.0,0.00024799,2]
[359527103,1746093039573,-500.0,0.00024799,2]
[359527104,1746093039588,-598.59429107,0.00024799,2]
[359527105,1746093039598,-500.0,0.00024799,2]
[359527106,1746093039607,-500.0,0.00024799,2]
[359527107,1746093039616,-500.0,0.00024799,2]
[359527108,1746093039627,-500.0,0.00024799,2]
[359527109,1746093039636,-500.0,0.00024799,2]
[359527110,1746093039645,-500.0,0.00024799,2]
[359527111,1746093039655,-500.0,0.00024799,2]
[359527112,1746093039666,-361.24611164,0.00024799,2]
[359527113,1746093039675,-90810.9438314,0.000248,2]
[359527114,1746093039685,-500.0,0.00024873,2]
[359527115,1746093039694,-500.0,0.00024873,2]
[359527116,1746093039703,-500.0,0.00024873,2]
[359527117,1746093039712,-497.99741957,0.0002489,2]
[359527118,1746093039722,-152.0,0.00024896,2]
[359527119,1746093039732,-87488.0644688,0.000249,2]
[359527120,1746093039742,-470.08970746,0.00024911,2]
[359527121,1746093039751,-422.10997939,0.00024973,2]
[359527122,1746093039760,-500.0,0.00024973,2]
[359527123,1746093039769,-500.0,0.00024973,2]
[359527124,1746093039779,-500.0,0.00024973,2]
[359527125,1746093039788,-502.29208565,0.00024973,2]
[359527126,1746093039796,-557.61487905,0.00024973,2]
[359527127,1746093039805,-500.0,0.00024973,2]
[359527128,1746093039815,-500.0,0.00024973,2]
[359527129,1746093039824,-500.0,0.00024973,2]
[359527130,1746093039832,-43744.0322344,0.0002498,2]
[359527131,1746093039840,-174976.128938,0.0002499,2]
[359527132,1746093039848,-12818.56744619,0.00024993,2]
[359527133,1746093039856,-900.0,0.00024998,2]
[359527134,1746093039865,-883.77350871,0.00025,2]
[359527135,1746093039878,-2603.45296275,0.00025,2]
[359527136,1746093039887,-10364.0,0.00025,2]
[359527137,1746093039896,-840.78436779,0.00025,2]
[359527138,1746093039905,-47509.69492776,0.00025,2]
[359527139,1746093039913,-33227.39016693,0.00025,2]
[359527140,1746093040012,-77.67758678,0.00025,2]
[359527142,1746093040047,-2947.57868918,0.00025,2]
[359527144,1746093040059,-2000.0,0.00025,2]
[359527187,1746093813874,-238.10535775,0.00021423,2]
[359527188,1746093821320,-176.72829046,0.00021423,2]
[359527189,1746093821762,-21689.0,0.00021423,2]
[359527190,1746093824105,-398.54916676,0.00021423,2]
[359527191,1746093827340,-153.02386508,0.00021423,2]
[359527192,1746093833668,-214.54054525,0.00021423,2]
[359527193,1746093841018,-267.47896392,0.00021423,2]
[359527194,1746093852356,-247.1436186,0.00021342,2]
[359527195,1746093859527,-79.7216009,0.00021342,2]
[359527196,1746093859551,-94.49123885,0.00021423,2]
[359527197,1746093865193,-211.04107581,0.00021423,2]
[359527198,1746093869297,-152.0,0.00021423,2]
[359527199,1746093872989,-296.50962664,0.00021423,2]
[359527201,1746093877543,-159.21582044,0.00021423,2]
[359527202,1746093882518,-174.93605871,0.00021423,2]
[359527203,1746093885512,-165.84812085,0.00021423,2]
[359527204,1746093891987,-292.78417956,0.00021423,2]
[359527205,1746093897670,-207.21582044,0.00021423,2]
[359527207,1746093901598,-8.53186948,0.00021423,2]
[359527209,1746093954300,-176.72829046,0.00018585,2]
[359527210,1746093954322,-114.73984006,0.00019323,2]
[359527211,1746093960747,-250.0,0.00019323,2]
[359527212,1746093967428,-151.0,0.00019323,2]
[359527213,1746093971915,-239.64305386,0.00019323,2]
[359527215,1746093980062,-115.77096312,0.00019323,2]
[359527231,1746094156677,-184.864857,0.00021139,2]
[359527232,1746094157143,-1704.81781826,0.00021139,2]
[359527233,1746094160151,-16076.15326824,0.00021139,2]
[359527234,1746094160172,-160.0,0.00021994,2]
[359527235,1746094160192,-7045.28650904,0.00022,2]
[359527236,1746094160212,-210.381972,0.00022014,2]
[359527237,1746094160234,-250.0,0.00022014,2]
[359527238,1746094160254,-300.0,0.00022196,2]
[359527239,1746094160274,-500.0,0.00022273,2]
[359527240,1746094160294,-212.17294433,0.00022273,2]
[359527241,1746094160316,-500.0,0.00022273,2]
[359527242,1746094160336,-623.2087604,0.00022273,2]
[359527243,1746094160357,-609.45395864,0.00022273,2]
[359527244,1746094160377,-510.49861526,0.00022273,2]
[359527245,1746094160396,-500.42441715,0.00022273,2]
[359527246,1746094160416,-500.0,0.00022273,2]
[359527247,1746094160436,-500.0,0.00022273,2]
[359527248,1746094160456,-206.41212574,0.00022273,2]
[359527249,1746094160476,-500.0,0.00022273,2]
[359527250,1746094160495,-500.83280941,0.00022273,2]
[359527251,1746094160514,-500.0,0.00022273,2]
[359527252,1746094160534,-500.0,0.00022273,2]
[359527253,1746094160554,-500.0,0.00022273,2]
[359527254,1746094160574,-500.0,0.00022273,2]
[359527255,1746094160594,-500.0,0.00022273,2]
[359527256,1746094160614,-500.0,0.00022273,2]
[359527257,1746094160634,-500.0,0.00022273,2]
[359527258,1746094160654,-500.0,0.00022273,2]
[359527259,1746094160675,-507.49178017,0.00022273,2]
[359527260,1746094160695,-500.0,0.00022273,2]
[359527261,1746094160715,-500.0,0.00022273,2]
[359527262,1746094160735,-500.0,0.00022273,2]
[359527263,1746094160755,-500.0,0.00022273,2]
[359527264,1746094160774,-300.0,0.00022273,2]
[359527265,1746094160794,-204.22186963,0.00022273,2]
[359527266,1746094160815,-500.0,0.00022273,2]
[359527267,1746094160834,-500.0,0.00022273,2]
[359527268,1746094160855,-160.55894383,0.00022273,2]
[359527269,1746094160874,-500.0,0.00022273,2]
[359527270,1746094160896,-31346.88438315,0.00022273,2]
[359527272,1746094207733,-151.0,0.00018585,2]
[359527273,1746094209600,-181.7504045,0.00019954,2]
[359527274,1746094216963,-40.87676437,0.00019954,2]
[359527312,1746094231661,-160.83610019,0.00022171,2]
[359527314,1746094231672,-260.47152955,0.00022192,2]
[359527316,1746094231682,-260.47152955,0.00022195,2]
[359527319,1746094231692,-300.0,0.00022271,2]
[359527321,1746094231702,-300.0,0.00022272,2]
[359527323,1746094231711,-300.0,0.00022272,2]
[359527325,1746094231720,-300.0,0.00022272,2]
[359527327,1746094231730,-300.0,0.00022272,2]
[359527329,1746094231739,-1200.0,0.00022272,2]
[359527331,1746094231749,-500.0,0.00022273,2]
[359527333,1746094231758,-500.72990189,0.00022273,2]
[359527336,1746094231767,-500.0,0.00022273,2]
[359527338,1746094231777,-500.0,0.00022273,2]
[359527340,1746094231787,-500.0,0.00022273,2]
[359527342,1746094231796,-500.0,0.00022273,2]
[359527344,1746094231805,-500.0,0.00022273,2]
[359527346,1746094231815,-300.0,0.00022273,2]
[359527348,1746094231824,-500.0,0.00022273,2]
[359527351,1746094231834,-500.0,0.00022273,2]
[359527353,1746094231843,-500.0,0.00022273,2]
[359527355,1746094231853,-500.0,0.00022273,2]
[359527357,1746094231863,-12114.50699435,0.00022273,2]
[359527359,1746094231872,-1000.5198928,0.00022292,2]
[359527361,1746094231881,-500.0,0.00022295,2]
[359527363,1746094231891,-500.0,0.00022295,2]
[359527365,1746094231900,-500.0,0.00022295,2]
[359527367,1746094231909,-500.0,0.00022295,2]
[359527369,1746094231919,-500.0,0.00022295,2]
[359527371,1746094231928,-500.0,0.00022295,2]
[359527373,1746094231937,-500.0,0.00022295,2]
[359527374,1746094231946,-451.74646026,0.00022295,2]
[359527377,1746094231962,-48.25353974,0.00022295,2]
[359527379,1746094231971,-500.0,0.00022295,2]
[359527381,1746094231980,-500.0,0.00022295,2]
[359527383,1746094231990,-500.0,0.00022295,2]
[359527385,1746094232000,-500.0,0.00022295,2]
[359527386,1746094232009,-500.0,0.00022295,2]
[359527388,1746094232019,-500.0,0.00022295,2]
[359527390,1746094232030,-500.0,0.00022295,2]
[359527392,1746094232039,-500.0,0.00022295,2]
[359527393,1746094232049,-500.0,0.00022295,2]
[359527394,1746094232058,-500.0,0.00022295,2]
[359527395,1746094232067,-500.0,0.00022295,2]
[359527396,1746094232077,-500.0,0.00022295,2]
[359527397,1746094232086,-297.66068853,0.00022295,2]
[359527398,1746094232095,-500.0,0.00022295,2]
[359527399,1746094232104,-500.0,0.00022295,2]
[359527400,1746094232113,-158.58272456,0.00022295,2]
[359527401,1746094232122,-500.0,0.00022295,2]
[359527402,1746094232131,-500.0,0.00022295,2]
[359527403,1746094232140,-500.0,0.00022295,2]
[359527404,1746094232150,-500.0,0.00022295,2]
[359527405,1746094232159,-460.06806568,0.00022295,2]
[359527406,1746094232181,-44.81760942,0.00022295,2]
[359527407,1746094232191,-500.0,0.00022295,2]
[359527408,1746094232200,-520.51645461,0.00022295,2]
[359527409,1746094232210,-500.0,0.00022295,2]
[359527410,1746094232219,-490.00795417,0.00022295,2]
[359527418,1746094237767,-500.0,0.00022294,2]
[359527419,1746094237777,-420.50308269,0.00022294,2]
[359527420,1746094237786,-500.0,0.00022294,2]
[359527421,1746094237796,-226.25545728,0.00022294,2]
[359527422,1746094237805,-276.96478127,0.00022294,2]
[359527423,1746094237815,-273.61784074,0.00022294,2]
[359527424,1746094237869,-226.38215926,0.00022294,2]
[359527425,1746094237878,-430.17441198,0.00022294,2]
[359527426,1746094237888,-595.77987197,0.00022294,2]
[359527427,1746094237897,-500.0,0.00022294,2]
[359527428,1746094237907,-500.0,0.00022294,2]
[359527429,1746094237916,-500.0,0.00022294,2]
[359527430,1746094237926,-500.0,0.00022294,2]
[359527431,1746094237936,-500.0,0.00022294,2]
[359527432,1746094237945,-500.0,0.00022294,2]
[359527433,1746094237955,-500.0,0.00022294,2]
[359527434,1746094237964,-500.0,0.00022294,2]
[359527435,1746094237974,-157.68,0.00022297,2]
[359527436,1746094237983,-10000.0,0.00022299,2]
[359527437,1746094237992,-400.000001,0.0002238,2]
[359527438,1746094238002,-440.04143747,0.00022558,2]
[359527439,1746094238011,-441.19646739,0.00022587,2]
[359527440,1746094238021,-152.0,0.00022595,2]
[359527441,1746094238031,-374.96607199,0.000228,2]
[359527442,1746094238040,-440.04143747,0.00022834,2]
[359527443,1746094238050,-501.50885988,0.00022925,2]
[359527444,1746094238060,-500.74927226,0.00022925,2]
[359527445,1746094238069,-500.0,0.00022925,2]
[359527446,1746094238079,-1388.44167601,0.00022931,2]
[359527447,1746094238088,-440.04143747,0.0002307,2]
[359527448,1746094238098,-539.1777764,0.00023096,2]
[359527449,1746094238109,-685.29,0.00023253,3]
[359527450,1746094238119,-4740.58220207,0.00023263,2]
[359527451,1746094238130,-77276.02487853,0.00023263,2]
[359527452,1746094238140,-500.0,0.00023273,2]
[359527453,1746094238150,-500.0,0.00023273,2]
[359527454,1746094238160,-500.0,0.00023273,2]
[359527455,1746094238171,-160.7576221,0.00023273,2]
[359527456,1746094238190,-500.0,0.00023273,2]
[359527457,1746094238200,-440.04143747,0.00023394,2]
[359527458,1746094238210,-8260.5494793,0.00023408,2]
[359527459,1746094238219,-2641.4377484,0.00023408,2]
[359527460,1746094238229,-151.0,0.000236,5]
[359527461,1746094238239,-151.0,0.00023626,2]
[359527462,1746094238248,-207.4,0.00023626,2]
[359527463,1746094238258,-1000.0,0.00023635,2]
[359527464,1746094238268,-250.0,0.00023635,2]
[359527465,1746094238277,-440.04143747,0.00023714,2]
[359527466,1746094238287,-151.0,0.000239,10]
[359527467,1746094238296,-600.0,0.00023916,2]
[359527468,1746094238306,-72000.22963859,0.0002399,2]
[359527469,1746094238315,-151.0,0.00024,10]
[359527470,1746094238325,-500.0,0.00024,2]
[359527471,1746094238335,-440.04143747,0.00024076,2]
[359527472,1746094238345,-151.0,0.000241,10]
[359527473,1746094238355,-420.0,0.00024194,2]
[359527474,1746094238364,-420.0,0.00024195,2]
[359527475,1746094238374,-420.0,0.00024195,2]
[359527476,1746094238383,-420.0,0.00024195,2]
[359527477,1746094238393,-420.0,0.00024195,2]
[359527478,1746094238402,-151.0,0.000242,9]
[359527479,1746094238412,-440.04143747,0.0002421,2]
[359527480,1746094238421,-1680.0,0.00024308,2]
[359527481,1746094238431,-871.15385704,0.00024323,2]
[359527482,1746094238440,-151.0,0.000244,8]
[359527483,1746094238450,-151.0,0.000244,6]
[359527484,1746094238459,-13303.53665412,0.00024409,2]
[359527485,1746094238468,-440.04143747,0.0002446,2]
[359527486,1746094238478,-500.0,0.00024473,2]
[359527487,1746094238487,-500.0,0.00024473,2]
[359527488,1746094238496,-500.0,0.00024473,2]
[359527489,1746094238505,-500.44752969,0.00024473,2]
[359527490,1746094238514,-201.5206328,0.00024555,2]
[359527491,1746094238525,-151.0,0.000246,5]
[359527492,1746094238534,-151.0,0.000246,10]
[359527493,1746094238544,-10002.37576004,0.000246,2]
[359527494,1746094238554,-501.89805431,0.00024673,2]
[359527495,1746094238563,-247.80527149,0.00024673,2]
[359527496,1746094238578,-613.77481421,0.00024673,2]
[359527497,1746094238587,-500.0,0.00024673,2]
[359527498,1746094238596,-500.35887222,0.00024673,2]
[359527499,1746094238606,-500.0,0.00024673,2]
[359527500,1746094238615,-500.0,0.00024673,2]
[359527501,1746094238625,-500.0,0.00024673,2]
[359527502,1746094238635,-503.00725853,0.00024673,2]
[359527503,1746094238645,-500.0,0.00024673,2]
[359527504,1746094238655,-500.0,0.00024673,2]
[359527505,1746094238664,-500.0,0.00024673,2]
[359527506,1746094238674,-500.0,0.00024673,2]
[359527507,1746094238684,-500.0,0.00024673,2]
[359527508,1746094238694,-500.0,0.00024673,2]
[359527509,1746094238703,-500.0,0.00024673,2]
[359527510,1746094238713,-501.19091362,0.00024673,2]
[359527511,1746094238722,-500.0,0.00024673,2]
[359527512,1746094238732,-500.29952747,0.00024673,2]
[359527513,1746094238742,-270.46070821,0.00024673,2]
[359527514,1746094238751,-400.0,0.00024673,2]
[359527515,1746094238760,-520.82326005,0.00024673,2]
[359527516,1746094238770,-125591.16492375,0.000247,2]
[359527517,1746094238779,-313.5174939,0.000247,3]
[359527518,1746094238789,-160.0,0.000247,3]
[359527519,1746094238799,-160.0,0.000247,3]
[359527520,1746094238808,-160.0,0.000247,3]
[359527521,1746094238818,-12880.30978974,0.000247,3]
[359527522,1746094238827,-242851.59961711,0.000247,2]
[359527523,1746094238836,-151.0,0.000247,6]
[359527524,1746094238845,-530.316793,0.000247,7]
[359527525,1746094238855,-530.316793,0.000247,7]
[359527526,1746094238864,-362.263958,0.000247,7]
[359527527,1746094238873,-362.263958,0.000247,7]
[359527528,1746094238882,-221.757949,0.000247,7]
[359527529,1746094238892,-221.757949,0.000247,7]
[359527530,1746094238901,-151.0,0.000247,7]
[359527531,1746094238910,-151.0,0.000247,7]
[359527532,1746094238919,-151.0,0.000247,7]
[359527533,1746094238929,-1115.391809,0.000247,7]
[359527534,1746094238938,-1115.391809,0.000247,7]
[359527535,1746094238948,-500.0,0.00024773,2]
[359527536,1746094238958,-500.0,0.00024773,2]
[359527537,1746094238968,-500.0,0.00024773,2]
[359527538,1746094238977,-500.0,0.00024773,2]
[359527539,1746094238986,-500.0,0.00024773,2]
[359527540,1746094238996,-841.10298755,0.00024799,3]
[359527541,1746094239005,-151.0,0.000248,7]
[359527542,1746094239015,-151.0,0.000248,7]
[359527543,1746094239025,-3966.38474256,0.000248,2]
[359527544,1746094239034,-151.0,0.000248,7]
[359527545,1746094239043,-151.0,0.000248,7]
[359527546,1746094239053,-151.0,0.000248,7]
[359527547,1746094239063,-572.883256,0.000248,7]
[359527548,1746094239072,-572.883256,0.000248,7]
[359527549,1746094239081,-440.04143748,0.00024857,2]
[359527550,1746094239091,-500.0,0.00024873,2]
[359527551,1746094239102,-500.0,0.00024873,2]
[359527552,1746094239111,-500.0,0.00024873,2]
[359527553,1746094239121,-500.0,0.00024873,2]
[359527555,1746094239130,-501.18180168,0.00024873,2]
[359527556,1746094239139,-500.0,0.00024873,2]
[359527557,1746094239149,-471.84423637,0.00024873,2]
[359527558,1746094239158,-500.0,0.00024873,2]
[359527559,1746094239168,-500.0,0.00024873,2]
[359527560,1746094239181,-500.0,0.00024873,2]
[359527561,1746094239191,-502.27892226,0.00024873,2]
[359527562,1746094239200,-257.36977579,0.00024873,2]
[359527563,1746094239210,-500.0,0.00024873,2]
[359527564,1746094239219,-500.78456312,0.00024873,2]
[359527565,1746094239228,-300.0,0.00024873,2]
[359527566,1746094239239,-500.0,0.00024873,2]
[359527567,1746094239250,-500.0,0.00024873,2]
[359527568,1746094239260,-500.0,0.00024873,2]
[359527569,1746094239269,-500.0,0.00024873,2]
[359527570,1746094239279,-557.61487905,0.00024873,2]
[359527571,1746094239288,-500.0,0.00024873,2]
[359527572,1746094239298,-500.0,0.00024873,2]
[359527573,1746094239307,-554.54832201,0.00024873,2]
[359527574,1746094239317,-500.0,0.00024873,2]
[359527575,1746094239326,-500.0,0.00024873,2]
[359527576,1746094239336,-500.0,0.00024873,2]
[359527577,1746094239345,-184.48630025,0.0002488,8]
[359527578,1746094239356,-160.0,0.000249,3]
[359527579,1746094239366,-421.4777418,0.000249,3]
[359527580,1746094239375,-160.0,0.000249,3]
[359527581,1746094239386,-734.530001,0.000249,7]
[359527582,1746094239395,-734.530001,0.000249,7]
[359527583,1746094239405,-208.342809,0.000249,7]
[359527584,1746094239414,-208.342809,0.000249,7]
[359527585,1746094239423,-151.0,0.000249,7]
[359527586,1746094239433,-151.0,0.000249,7]
[359527587,1746094239442,-151.0,0.000249,7]
[359527588,1746094239607,-151.0,0.000249,7]
[359527589,1746094239617,-151.0,0.000249,7]
[359527591,1746094239626,-530.316793,0.000249,7]
[359527592,1746094239636,-530.316793,0.000249,7]
[359527594,1746094239645,-530.316793,0.000249,7]
[359527596,1746094239655,-530.316793,0.000249,7]
[359527598,1746094239664,-362.263958,0.000249,7]
[359527600,1746094239673,-362.263958,0.000249,7]
[359527602,1746094239683,-362.263958,0.000249,7]
[359527604,1746094239692,-362.263958,0.000249,7]
[359527606,1746094239702,-151.0,0.000249,7]
[359527608,1746094239712,-221.757949,0.000249,7]
[359527610,1746094239722,-221.757949,0.000249,7]
[359527612,1746094239731,-221.757949,0.000249,7]
[359527614,1746094239741,-221.757949,0.000249,7]
[359527616,1746094239750,-259.612865,0.000249,7]
[359527618,1746094239760,-259.612865,0.000249,7]
[359527620,1746094239769,-151.0,0.000249,7]
[359527622,1746094239778,-839.71712,0.000249,7]
[359527624,1746094239787,-839.71712,0.000249,7]
[359527626,1746094239796,-839.71712,0.000249,7]
[359527628,1746094239806,-839.71712,0.000249,7]
[359527630,1746094239815,-151.0,0.000249,7]
[359527632,1746094239825,-260648.908102,0.000249,2]
[359527634,1746094239834,-151.0,0.000249,7]
[359527636,1746094239844,-151.0,0.000249,7]
[359527638,1746094239853,-151.0,0.000249,7]
[359527640,1746094239863,-1115.391809,0.000249,7]
[359527642,1746094239872,-1115.391809,0.000249,7]
[359527644,1746094239881,-1115.391809,0.000249,7]
[359527646,1746094239890,-1115.391809,0.000249,7]
[359527648,1746094239899,-313.5174939,0.000249,7]
[359527650,1746094239909,-160.0,0.000249,7]
[359527652,1746094239919,-160.0,0.000249,7]